Cogmind - Beta 13 @@@ ROGUE MODE // 2024.03.30 @ 22:13:59 Player: SLUGGY Result: Destroyed by G-34 Mercenary with Small Laser Performance ------------- Evolutions (0) 0 Regions Visited (1) 200 Robots Destroyed (15) 75 Value Destroyed (127) 127 Prototype IDs (0) 0 Alien Tech Used (0) 0 Bonus (0) 0 TOTAL SCORE: 402 Bonus ------- None Cogmind --------- Core Integrity 0/250 Matter 235/300 Energy 100/100 System Corruption 0% Temperature Cool (6) Movement Core (100) Ox1 Location -10/Materials Parts ------- > --- POWER (1) -------- (None) > --- PROPULSION (2) --- (None) > --- UTILITY (2) ------ Small Storage Unit > --- WEAPON (2) ------- (None) > --- INVENTORY (8) ---- Wheel Wheel Peak State ------------ > --- POWER ------------ Ion Engine > --- PROPULSION ------- Light Treads Light Treads > --- UTILITY ---------- Small Storage Unit Improved Terrain Scanner > --- WEAPON ----------- EM Pulse Gun EM Pulse Gun > --- INVENTORY -------- (None) [Rating: 9] Favorites ----------- Power Ion Engine Engine Ion Engine Propulsion Hover Unit Treads Light Treads Leg Aluminum Leg Wheel Wheel Hover Unit Hover Unit Utility Small Storage Unit Device Improved Terrain Scanner Storage Small Storage Unit Weapon EM Pulse Gun Energy Gun EM Pulse Gun Ballistic Gun Light Assault Rifle Special Weapon Welding Torch Build | -11 -10 ------- Run | Yrd Mat Slots Evolved . | . . Power . | . . Propulsion . | . . Utility . | . . Weapon . | . . Parts Attached 22 | 15 7 Power 2 | 1 1 Engine 2 | 1 1 Core . | . . Reactor . | . . Propulsion 12 | 10 2 Treads 2 | 2 . Leg 4 | 4 . Wheel 4 | 4 . Hover 2 | . 2 Flight . | . . Utility 3 | 2 1 Device 1 | 1 . Storage 2 | 1 1 Processor . | . . Hackware . | . . Protection . | . . Artifact . | . . Weapon 5 | 2 3 Energy Gun 3 | 2 1 Energy Cannon . | . . Ballistic Gun 1 | . 1 Ballistic Cannon . | . . Launcher . | . . Special Weapon 1 | . 1 Impact Weapon . | . . Slashing Weapon . | . . Piercing Weapon . | . . Special Melee Weapon . | . . Unidentified Prototypes . | . . Parts Lost 6 | . 6 Power 1 | . 1 Propulsion 2 | . 2 Utility 1 | . 1 Weapon 2 | . 2 Highest Loss Streak 6 | . 6 To Critical Strikes . | . . Average Slot Usage (%) 76 | . 76 Engine 9 | . 9 Wheel 4 | . 4 Hover 18 | . 18 Device 11 | . 11 Storage 13 | . 13 Energy Gun 14 | . 14 Special Weapon 4 | . 4 Naked Turns . | . . Heaviest Build 15 | 15 15 Greatest Support 40 | 40 20 Greatest Overweight (x) 1 | 1 . Average Overweight (x) . | . . Largest Inventory Capacity 8 | 8 8 Average Capacity 7 | 7 7 Most Carried 5 | 3 5 Average Carried 1 | . 2 Final Capacity 8 | 8 8 Final Carried 2 | 2 2 Class Distribution -------------------- 75% | Mutant 24% | Scavenger-Mutant Dominant Class ---------------- Scavenger-Mutant | -10/Materials Resources | -11 -10 ----------- Run | Yrd Mat Matter Collected 325 | 285 40 Remotely . | . . Salvage Created 382 | 277 105 Parts 38 | 23 15 Haulers Intercepted . | . . Recyclers Shooed . | . . Parts Field Recycled . | . . Retrieved Matter . | . . Parts Self-Destructed . | . . Prevented . | . . Kills | -11 -10 ------- Run | Yrd Mat Combat Hostiles Destroyed 3 | . 3 Guns 2 | . 2 AOE 1 | . 1 Classes Destroyed 6 | 3 3 Worker 2 | 2 . Builder 1 | . 1 Tunneler 6 | 6 . Recycler 1 | 1 . Watcher 2 | . 2 Swarmer 3 | . 3 Best Kill Streak 4 | 4 3 Combat Bots Only 2 | . 2 Max Kills in Single Turn 1 | 1 1 Gunslinging . | . . Exploded 1 | . 1 Melee . | . . Uniques/NPCs Destroyed . | . . Combat | -11 -10 -------- Run | Yrd Mat Hostile Shots Fired 75 | . 75 Missed 18 | . 18 Damage Taken 601 | . 601 Core 257 | . 257 Absorbed by Shields . | . . Core Remaining (%) 100 | 100 . Volleys Fired 42 | 15 27 Largest 2 | 2 2 Hottest 80 | 80 80 Shots Fired 56 | 25 31 Gun 56 | 25 31 Cannon . | . . Launcher . | . . Special . | . . Kinetic . | . . Thermal . | . . Explosive . | . . Electromagnetic 56 | 25 31 Robot Hit Streak 4 | 4 4 Robot Miss Streak 7 | 1 7 Penetration Max . | . . Secondary Targets . | . . Shots Hit Robots 27 | 15 12 Core Hits 15 | 9 6 Critical Kills . | . . Critical Parts Destroyed . | . . Critical Strikes . | . . Melee Attacks . | . . Impact . | . . Slashing . | . . Piercing . | . . Sneak Attacks . | . . Combat Hostiles . | . . Follow-up Attacks . | . . Damage Inflicted 572 | 351 221 Guns 401 | 216 185 Cannons . | . . Explosions 171 | 135 36 Melee . | . . Ramming . | . . Kinetic . | . . Thermal 171 | 135 36 Explosive . | . . Electromagnetic 401 | 216 185 Impact . | . . Slashing . | . . Piercing . | . . Highest Corruption . | . . Average Corruption . | . . Corruption Purged . | . . Corruption Blocked . | . . Overload Shots . | . . Overflow Damage 12 | 12 . Projectiles . | . . Explosions 12 | 12 . Melee . | . . Knockbacks . | . . Impact . | . . Kinetic . | . . Secondary . | . . Self-Inflicted Damage . | . . Shots . | . . Rammed . | . . Targets Rammed . | . . Kicked . | . . Crushed . | . . Highest Temperature 109 | 54 109 Average Temperature 36 | 20 45 Received Heat Transfer 306 | . 306 Siege Activations . | . . Robots Corrupted . | . . Combat Hostiles . | . . Parts Fried 1 | . 1 Impact Corruptions . | . . Robots Melted . | . . Combat Hostiles . | . . Parts Melted 1 | 1 . Heat Transferred 250 | 250 . Parts Sabotaged . | . . Parts Stolen . | . . Parts Stripped . | . . Power Chain Reactions 3 | 2 1 Alert | -11 -10 ------- Run | Yrd Mat Peak Influence 227 | 45 227 Initial 29 | . 29 Average 81 | 14 154 Maximum Alert Level 1 | . 1 Low Security (%) 89 | 100 77 Level 1 10 | . 22 Level 2 . | . . Level 3 . | . . Level 4 . | . . Level 5 . | . . High Security . | . . Max Security . | . . Squads Dispatched 1 | . 1 Investigation 1 | . 1 Extermination . | . . Reinforcement . | . . Assault . | . . Garrison . | . . Intercept . | . . Searches Triggered . | . . Construction Impeded . | . . Haulers Reinforced . | . . Active Scanning Responses . | . . Cargo Convoy Interrupts . | . . Stealth | -11 -10 --------- Run | Yrd Mat Distress Signals 1 | . 1 Communications Jammed . | . . Distress Signals . | . . Times Spotted 11 | . 11 Peak Tracking Total 4 | . 4 Tactical Retreats 2 | . 2 Traps | -11 -10 ------- Run | Yrd Mat Traps Triggered . | . . Indirectly . | . . Trap Hack Attempts . | . . Triggered . | . . Disarmed . | . . Reprogrammed . | . . Reused . | . . Traps Extracted . | . . Installed . | . . Triggered . | . . Machines | -11 -10 ---------- Run | Yrd Mat Machines Disabled 1 | . 1 Max in Single Turn 1 | . 1 Machines Repaired . | . . Machines Dismantled . | . . Machines Sabotaged . | . . Overloaded Fab Kills . | . . Hacking | -11 -10 --------- Run | Yrd Mat Machines Accessed 1 | . 1 Terminals 1 | . 1 Fabricators . | . . Repair Stations . | . . Recycling Units . | . . Scanalyzers . | . . Garrison Access . | . . Total Hacks 4 | . 4 Successful 2 | . 2 Failed 2 | . 2 Catastrophic . | . . Database Lockouts . | . . Manual . | . . Terminals 4 | . 4 Fabricators . | . . Repair Stations . | . . Recycling Units . | . . Scanalyzers . | . . Garrison Access . | . . Terminal Hacks 2 | . 2 Alert Level 1 | . 1 Dispatch Records 1 | . 1 Fabricator Hacks . | . . Repair Station Hacks . | . . Recycling Unit Hacks . | . . Scanalyzer . | . . Garrison Access Hacks . | . . Unauthorized Hacks . | . . Terminals . | . . Fabricators . | . . Repair Stations . | . . Recycling Units . | . . Scanalyzers . | . . Garrison Access . | . . Data Cores Recovered . | . . Used . | . . Hacking Detections 1 | . 1 Full Trace Events 1 | . 1 Feedback Events . | . . Feedback Blocked . | . . Robot Schematics Acquired . | . . Robots Built . | . . Authchips . | . . Time . | . . Total Robot Build Rating . | . . Part Schematics Acquired . | . . Parts Built . | . . Authchips . | . . Time . | . . Total Part Build Rating . | . . Parts Repaired . | . . Time . | . . Parts Recycled . | . . Recycled Matter . | . . Retrieved Matter . | . . Retrieved Components . | . . Parts Scanalyzed . | . . Part Schematics Acquired . | . . Parts Damaged . | . . Bothacking | -11 -10 ------------ Run | Yrd Mat Used RIF Installer . | . . Robots Hacked . | . . Non-combat . | . . Combat . | . . Robot Hacks Applied . | . . Relay Couplers Released . | . . Fabnet Peak Effective % . | . . Robots Rewired . | . . Allies Hacked . | . . Hacks Repelled . | . . Allies | -11 -10 -------- Run | Yrd Mat Total Allies . | . . Largest Group . | . . Highest-Rated Group . | . . Highest-Rated Ally . | . . Total Orders . | . . Ally Attacks . | . . Total Damage . | . . Kills . | . . Allies Corrupted . | . . Allies Melted . | . . Intel | -11 -10 ------- Run | Yrd Mat Robot Analysis Total . | . . Derelict Logs Recovered . | . . Drone Launches . | . . Drone Recoveries . | . . Exploration | -11 -10 ------------- Run | Yrd Mat Turns Passed 439 | 230 209 Spaces Moved 268 | 129 139 Core 6 | 6 . Treads 56 | 56 . Legs 10 | 10 . Wheels 83 | 57 26 Hover 113 | . 113 Flight . | . . Fastest Speed 50 | 50 56 Average Speed 88 | 119 60 Slowest Speed 160 | 160 80 Overloaded Moves . | . . Propulsion Burnouts . | . . Robots Hopped . | . . Cave-ins Triggered . | . . Exploration Rate (%) 12 | 7 18 Regions Visited 1 Branch Regions . Pre-discovered Areas . | . . Known Exits Taken . | . . Unknown Exits Taken 1 | 1 . Scrap Searched . | . . Spaces Dug . | . . Terrain Destroyed 12 | 7 5 Melee . | . . Projectile . | . . AOE 12 | 7 5 Terrain Rammed . | . . Walls Destroyed . | . . Machines Disabled . | . . Actions | -11 -10 --------- Run | Yrd Mat Total 415 | 179 236 Wait 43 | . 43 Move 267 | 128 139 Hop . | . . Pick Up 25 | 15 10 Fast Attach . | . . Attach 13 | 9 4 Detach . | . . Swap 9 | 6 3 Drop 16 | 6 10 Fire 42 | 15 27 Melee . | . . Ram . | . . Kick . | . . Crush . | . . Escape Stasis . | . . Rewire . | . . Trap . | . . Miscellaneous . | . . Route ------- -11/Scrapyard -10/Materials History --------- Turn | Location | Event 5 | -11/Scrapyard | Discovered new exit (range 16) 231 | -11/Scrapyard | Entered Materials 422 | -10/Materials | Core integrity fell below 50% 431 | -10/Materials | Core integrity fell below 20% 440 | -10/Materials | Destroyed by G-34 Mercenary with Small Laser Last Messages --------------- 2x Transport >>Alert(Check) Current Alert Level: Low Security ALERT: Suspicious activity at Terminal M007. Dispatching Investigation squad. Electrolysis Chamber disabled. Sensor Array fried. W-16 Scout destroyed. U-05 Engineer destroyed. Lgt. Ion Engine destroyed. R-06 Scavenger collects Visual Processing Unit. Welding Torch destroyed. R-06 Scavenger collects Corrupted Lgt. Ion Engine. R-06 Scavenger collects Hover Unit. Hover Unit destroyed. Imp. Terrain Scanner destroyed. G-34 Mercenary misfires. EM Pulse Gun destroyed. Hover Unit destroyed. Map ----- +----------------------------------------------------+ | ????????????????????????????????????? | | ????????????????????????????????????? | | ????????????????????????????????????? | | ??????????????????? ??????????????? | | ??????????????????? ?????????????? | | ??????????????????? #?????????????? | | ??????????????????? #?????????????? | | ?????????#?????#??? ##????????????? | | ????????#?????????? ????????????? | | ??????????????????# ?????????????? | | ??????????????????# ????? ???????? | | ??????#?????"?????# #????##???????? | | ?????????? ???????# ##????????????? | | ??????????????? ??+ T?#???????????? | | ??????????????????#=% #?????????????? | | ??????? ????"?????#! #?????????????? | | ?????"????????????# #??????????#??? | | ?????"??##+######## #????? ???????? | | ????????# =%! ^#?????????????? | | ????????+ ! +?????????????? | | ??????? # """ #?????????#???? | | ????????# """ ####+#??????? ?????? | | ????????# " "gw# #?????????????? | | ????????# g/ #?????#???????? | | ????????# # #??? ?????????? | | ????????# @ # #?????????????? | | ??????#?# ###### #?????????????? | | ?#?????## #????# #?????????????? | | ????????# #????# #?????????????? | | ????????# #???## #?????????????? | | ######### #?#??# #?????????????? | | # #!*=#?#??######?#???????????? | | # #% [#???#????????#??#???????? | | ? #! =###???#######???????????? | | # """ # ####### #???????????? | | # """ # [ #?#??#??????? | | # """ + = T ##??????????? | | # # #???????????? | | # """ [ ### ####### #???????????? | | # """ ### ####??## ##????????? ?? | | # """ #?# #??#???# ##???????????? | | # #?# #?#????# #????????????? | | ###########+######## #????????????? | | ?#???????# # #????????????? | | ??#??????# # #????????????? | | ?????????# """ # #????????????? | | ?????????# """ + #????????????? | | ?#?#?????# """ # #????????????? | | ?????????# """ " " # #????????????? | | ?????????# """ "R" # #????????????? | +----------------------------------------------------+ Best States ------------- Heat Dissipation 25 Energy Generation 10 Energy Capacity 250 Matter Stores 246 Matter Capacity 300 Sight Range 16 Terrain Scan Range 16 Terrain Scan Density 10 Evasion (%) 53 Recoil Reduction 2 Item Schematics ----------------- None Robot Schematics ------------------ None Fabricated ------------ Nothing Alien Tech Used ----------------- None Achievements -------------- None Challenges ------------ None Game ------ Seed HugeGaussCharger Manual? 0 Play Time 00:12:19 Cumulative 0.8 hours Start 2024.03.30 @ 22:02:37 End 2024.03.30 @ 22:13:59 Sessions 1 Manual Loads 0 Difficulty Rogue Special Mode None Game No. 4 Rogue 4 Adventurer 0 Explorer 0 Win Type - Total 0 Types 0/0/0/0/0/0/0/0/0 Lore% 0 Gallery% 4 Achievement% 4 Wizard Run 0 Options --------- Layout 1 ASCII 0 Keyboard 0 Movement Mouse Keybinds 0 Fullscreen 1 Font 32/SmallcapsGlow Map View 50x35 Zoom Use 0% Tactical HUD 0 Map Filters NONE Filters NONE Steam 1 RUN: 1eefc961-6e5f-414a-86fd-e8b476f4b59e